fUST/lending_fUST_20260615
["ID","MTS","AMOUNT","RATE_DAILY","PERIOD"]
[425080090,1781469038000,-7366.2426719,0.00016787,2]
[425080101,1781469038000,-500.0,0.00017669,2]
[425080092,1781469038000,-570.87990805,0.0001704,2]
[425080093,1781469038000,-210.86080624,0.0001704,2]
[425080094,1781469038000,-186.0,0.0001714,2]
[425080095,1781469038000,-443.0,0.0001714,2]
[425080098,1781469038000,-500.0,0.00017669,2]
[425080105,1781469038000,-500.0,0.00017669,2]
[425080097,1781469038000,-500.0,0.00017669,2]
[425080096,1781469038000,-500.0,0.00017669,2]
[425080108,1781469038000,-500.0,0.00017669,2]
[425080111,1781469038000,-500.0,0.00017669,2]
[425080112,1781469038000,-500.0,0.00017669,2]
[425080109,1781469038000,-500.0,0.00017669,2]
[425080110,1781469038000,-354.38000428,0.00017669,2]
[425080107,1781469038000,-640.71962793,0.00017669,2]
[425080103,1781469038000,-500.0,0.00017669,2]
[425080104,1781469038000,-500.0,0.00017669,2]
[425080102,1781469038000,-500.0,0.00017669,2]
[425080100,1781469038000,-500.0,0.00017669,2]
[425080099,1781469038000,-500.0,0.00017669,2]
[425080106,1781469038000,-500.0,0.00017669,2]
[425080133,1781469039000,-500.0,0.00017669,2]
[425080142,1781469039000,-552.61373078,0.00017669,2]
[425080135,1781469039000,-500.0,0.00017669,2]
[425080132,1781469039000,-500.0,0.00017669,2]
[425080140,1781469039000,-500.0,0.00017669,2]
[425080141,1781469039000,-500.0,0.00017669,2]
[425080146,1781469039000,-35594.06019106,0.00017783,2]
[425080138,1781469039000,-500.0,0.00017669,2]
[425080136,1781469039000,-500.0,0.00017669,2]
[425080143,1781469039000,-3176.72817821,0.0001767,2]
[425080153,1781469039000,-1409.04788597,0.00017846,2]
[425080134,1781469039000,-500.0,0.00017669,2]
[425080144,1781469039000,-215.04220334,0.00017708,2]
[425080139,1781469039000,-500.0,0.00017669,2]
[425080137,1781469039000,-500.0,0.00017669,2]
[425080120,1781469039000,-500.0,0.00017669,2]
[425080121,1781469039000,-500.0,0.00017669,2]
[425080152,1781469039000,-206.59261499,0.00017844,2]
[425080113,1781469039000,-500.0,0.00017669,2]
[425080114,1781469039000,-500.0,0.00017669,2]
[425080126,1781469039000,-500.0,0.00017669,2]
[425080116,1781469039000,-500.0,0.00017669,2]
[425080127,1781469039000,-500.0,0.00017669,2]
[425080131,1781469039000,-500.0,0.00017669,2]
[425080128,1781469039000,-500.0,0.00017669,2]
[425080130,1781469039000,-500.0,0.00017669,2]
[425080129,1781469039000,-500.0,0.00017669,2]
[425080124,1781469039000,-500.0,0.00017669,2]
[425080123,1781469039000,-500.0,0.00017669,2]
[425080122,1781469039000,-500.0,0.00017669,2]
[425080125,1781469039000,-500.0,0.00017669,2]
[425080118,1781469039000,-500.0,0.00017669,2]
[425080149,1781469039000,-43748.12847055,0.00017783,2]
[425080154,1781469039000,-1747.85180203,0.00017846,2]
[425080145,1781469039000,-500.0,0.00017771,2]
[425080168,1781469039000,-1358.55,0.00017883,2]
[425080179,1781469039000,-326.7384617,0.00017927,2]
[425080175,1781469039000,-326.7384617,0.00017927,2]
[425080173,1781469039000,-326.7384617,0.00017926,2]
[425080176,1781469039000,-457.708004,0.00017927,2]
[425080174,1781469039000,-326.7384617,0.00017926,2]
[425080170,1781469039000,-500.0,0.00017926,2]
[425080177,1781469039000,-457.708004,0.00017927,2]
[425080171,1781469039000,-457.708004,0.00017926,2]
[425080178,1781469039000,-326.7384617,0.00017927,2]
[425080180,1781469039000,-259.4390096,0.00017931,2]
[425080181,1781469039000,-326.7384617,0.00017931,2]
[425080182,1781469039000,-326.7384617,0.00017931,2]
[425080148,1781469039000,-747.69114452,0.00017783,2]
[425080172,1781469039000,-457.708004,0.00017926,2]
[425080169,1781469039000,-500.0,0.00017926,2]
[425080167,1781469039000,-783.2,0.00017883,2]
[425080162,1781469039000,-783.2,0.00017883,2]
[425080147,1781469039000,-35387.70465493,0.00017783,2]
[425080150,1781469039000,-966133.39727691,0.00017783,2]
[425080151,1781469039000,-368.0,0.00017835,2]
[425080157,1781469039000,-252.33,0.00017873,3]
[425080183,1781469039000,-57.67830646,0.00017931,2]
[425080166,1781469039000,-783.2,0.00017883,2]
[425080156,1781469039000,-504.67,0.00017873,3]
[425080155,1781469039000,-1009.33,0.00017873,3]
[425080161,1781469039000,-783.2,0.00017883,2]
[425080163,1781469039000,-783.2,0.00017883,2]
[425080160,1781469039000,-783.2,0.00017883,2]
[425080159,1781469039000,-233.27817934,0.00017882,2]
[425080164,1781469039000,-783.2,0.00017883,2]
[425080165,1781469039000,-783.2,0.00017883,2]
[425080158,1781469039000,-757.04,0.00017873,3]
[425080313,1781469044000,152.0,0.00024063,30]
[425080305,1781469044000,-304.0,0.00017752,13]
[425080584,1781469046000,-771.54061543,0.00017752,13]
[425080621,1781469047000,-367.63131814,0.00017931,2]
[425080622,1781469047000,-184.71614972,0.00017931,2]
[425080614,1781469047000,-152.0,0.00017765,7]
[425080617,1781469047000,-90.07668586,0.00017931,2]
[425080612,1781469047000,-152.0,0.00017765,7]
[425080610,1781469047000,-3924.45938457,0.00017752,13]
[425080615,1781469047000,-400.02969754,0.00017931,2]
[425080957,1781469111000,-1106.37935866,0.00016862,2]
[425080964,1781469348000,152.0,0.00024063,30]
[425080975,1781469776000,152.0,0.00024071,30]
[425080982,1781470082000,152.0,0.00024074,30]
[425081010,1781470232000,-1008.11958772,0.00016097,13]
[425081012,1781470232000,-674.42232686,0.00016097,13]
[425081030,1781470232000,-760.20316984,0.00016766,2]
[425081021,1781470232000,-447.298072,0.00016402,2]
[425081025,1781470232000,-414.35848972,0.00016766,2]
[425081019,1781470232000,-431.32186229,0.00016259,2]
[425081031,1781470232000,-1186.62963542,0.00016766,2]
[425081033,1781470232000,-1415.0,0.00017033,2]
[425081023,1781470232000,-237.56349057,0.00016766,2]
[425081035,1781470232000,-186.0,0.00017033,2]
[425081017,1781470232000,-3317.45808542,0.00016097,13]
[425081038,1781470232000,-536.85,0.00017048,2]
[425081040,1781470232000,-500.0,0.00017048,2]
[425081043,1781470232000,-157.48803685,0.00017231,2]
[425081046,1781470232000,-457.708004,0.00017241,2]
[425081049,1781470232000,-2871.6834411,0.00017483,2]
[425081052,1781470232000,-500.0,0.00017582,2]
[425081050,1781470232000,-500.0,0.00017582,2]
[425081059,1781470232000,-500.0,0.00017582,2]
[425081061,1781470232000,-318.22118423,0.00017582,2]
[425081057,1781470232000,-500.0,0.00017582,2]
[425081054,1781470232000,-500.0,0.00017582,2]
[425081056,1781470232000,-500.0,0.00017582,2]
[425081028,1781470232000,-13.25579331,0.00016766,2]
[425081190,1781470238000,-500.0,0.00017582,2]
[425081185,1781470238000,-500.0,0.00017582,2]
[425081189,1781470238000,-500.0,0.00017582,2]
[425081191,1781470238000,-231.24142281,0.00017582,2]
[425081184,1781470238000,-181.77881577,0.00017582,2]
[425081192,1781470238000,-500.0,0.00017582,2]
[425081186,1781470238000,-500.0,0.00017582,2]
[425081187,1781470238000,-549.44,0.00017582,2]
[425081193,1781470238000,-500.0,0.00017582,2]
[425081194,1781470238000,-500.0,0.00017582,2]
[425081188,1781470238000,-500.0,0.00017582,2]
[425081195,1781470239000,-275.53864565,0.00017582,2]
[425081196,1781470239000,-500.0,0.00017582,2]
[425081200,1781470239000,-500.0,0.00017582,2]
[425081197,1781470239000,-500.0,0.00017582,2]
[425081205,1781470239000,-192.87705195,0.00017582,2]
[425081203,1781470239000,-417.77286308,0.00017582,2]
[425081198,1781470239000,-500.0,0.00017582,2]
[425081199,1781470239000,-500.0,0.00017582,2]
[425081202,1781470239000,-500.0,0.00017582,2]
[425081201,1781470239000,-500.0,0.00017582,2]
[425081206,1781470239000,-169751.75222705,0.00017583,2]
[425081207,1781470239000,-73342.04559471,0.00017583,2]
[425081209,1781470239000,-17708.73550522,0.00017583,2]
[425081210,1781470239000,-2075.00998034,0.00017583,2]
[425081208,1781470239000,-41350.37507804,0.00017583,2]
[425081211,1781470239000,-822.21105682,0.00017583,2]
[425081204,1781470239000,-605.26137307,0.00017582,2]
[425081215,1781470241000,-796.79517445,0.00017583,2]
[425081216,1781470241000,-1808.55449098,0.00017583,2]
[425081239,1781470244000,-54907.43701433,0.00017583,2]
[425081241,1781470244000,-12885.20645343,0.00017583,2]
[425081268,1781470244000,-2512.25604105,0.00017583,2]
[425081265,1781470244000,-1990.70963771,0.00017583,2]
[425081411,1781470247000,-1565.81672411,0.00017583,2]
[425081404,1781470247000,-1095.21235212,0.00017583,2]
[425081397,1781470247000,-62308.94328927,0.00017583,2]
[425081372,1781470247000,-355.3,0.00017583,2]
[425081370,1781470247000,-1338.72935666,0.00017583,2]
[425081368,1781470247000,-2914.56535252,0.00017407,13]
[425081576,1781470654000,163.959323,0.00017132,120]
[425081581,1781470841000,152.0,0.00024075,30]
[425081588,1781471409000,23578.37,0.00024109,30]
[425081620,1781471431000,-416.75463976,0.0001,10]
[425081624,1781471431000,-1072.30277639,0.0001,10]
[425081622,1781471431000,-2251.31959154,0.0001,10]
[425081632,1781471431000,-250.0,0.0001177,2]
[425081631,1781471431000,-2195.28661884,0.000115,2]
[425081635,1781471431000,-1121.25140623,0.000125,2]
[425081627,1781471431000,-282.97168876,0.000115,2]
[425081886,1781471438000,-326.7384617,0.00017241,2]
[425081884,1781471438000,-163.959323,0.00017132,2]
[425081877,1781471438000,-326.0639152,0.00017105,2]
[425081887,1781471438000,-457.708004,0.00017241,2]
[425081889,1781471438000,-457.708004,0.00017241,2]
[425081895,1781471438000,-457.7080041,0.00017262,2]
[425081891,1781471438000,-326.7384617,0.00017241,2]
[425081893,1781471438000,-457.708004,0.00017241,2]
[425081900,1781471438000,-197.67620508,0.00017301,2]
[425081898,1781471438000,-330.2230258,0.00017262,2]
[425081906,1781471438000,-500.0,0.00017581,2]
[425081909,1781471438000,-209.99453436,0.00017608,2]
[425081904,1781471438000,-156.0,0.00017473,2]
[425081908,1781471438000,-1000.0,0.00017583,2]
[425081915,1781471438000,-500.0,0.0001768,2]
[425081902,1781471438000,-258.41119832,0.00017301,2]
[425081918,1781471438000,-500.0,0.0001768,2]
[425081896,1781471438000,-326.7384617,0.00017262,2]
[425081878,1781471438000,-457.708004,0.00017105,2]
[425081882,1781471438000,-326.7384617,0.00017109,2]
[425081875,1781471438000,-457.708004,0.00017105,2]
[425081911,1781471438000,-565.3946268,0.0001768,2]
[425081843,1781471438000,-826.10246407,0.000125,2]
[425081845,1781471438000,-337.63038798,0.00015131,2]
[425081847,1781471438000,-234.07913945,0.00015131,2]
[425081849,1781471438000,-365.38290674,0.00015131,2]
[425081859,1781471438000,-457.708004,0.00017104,2]
[425081862,1781471438000,-324.4588661,0.00017104,2]
[425081863,1781471438000,-326.7384617,0.00017105,2]
[425081851,1781471438000,-845.684913,0.00015923,2]
[425081865,1781471438000,-457.708004,0.00017105,2]
[425081852,1781471438000,-416.7546398,0.00016303,2]
[425081856,1781471438000,-326.7384617,0.00017099,2]
[425081854,1781471438000,-186.0,0.00017033,2]
[425081867,1781471438000,-326.7384617,0.00017105,2]
[425081869,1781471438000,-457.708004,0.00017105,2]
[425081873,1781471438000,-457.4506027,0.00017105,2]
[425081871,1781471438000,-326.7384617,0.00017105,2]
[425081880,1781471438000,-457.708004,0.00017105,2]
[425081913,1781471438000,-500.0,0.0001768,2]
[425081966,1781471438000,-432.27746892,0.00018016,7]
[425081920,1781471438000,-591.55644338,0.0001768,2]
[425081962,1781471438000,-457.708004,0.00017931,2]
[425081960,1781471438000,-457.708004,0.00017931,2]
[425081972,1781471438000,-2630.74974,0.00018134,2]
[425081974,1781471438000,-500.0,0.00018201,2]
[425081976,1781471438000,-500.0,0.00018475,2]
[425081978,1781471438000,-166.32022757,0.00018478,2]
[425081982,1781471438000,-616.92527281,0.00018682,2]
[425081984,1781471438000,-457.708004,0.00018748,2]
[425081986,1781471438000,-500.0,0.00018749,2]
[425081988,1781471438000,-2630.74974,0.00018897,2]
[425081990,1781471438000,-500.0,0.00018955,2]
[425081992,1781471438000,-1756.72044299,0.00018977,2]
[425081996,1781471438000,-1965.83825098,0.00018977,2]
[425081995,1781471438000,-4189.45215023,0.00018977,2]
[425081998,1781471438000,-22915.02475002,0.00018977,2]
[425081997,1781471438000,-2761.43621564,0.00018977,2]
[425081916,1781471438000,-500.0,0.0001768,2]
[425081956,1781471438000,-235.17933314,0.00017931,2]
[425081968,1781471438000,-500.0,0.00018062,2]
[425081980,1781471438000,-2512.72301092,0.00018554,2]
[425081970,1781471438000,-457.708004,0.00018062,2]
[425081924,1781471438000,-152.0,0.00017771,7]
[425081958,1781471438000,-423.32279965,0.00017931,2]
[425081927,1781471438000,-152.0,0.00017771,7]
[425081937,1781471438000,-500.0,0.00017927,2]
[425081928,1781471438000,-500.0,0.00017781,2]
[425081939,1781471438000,-457.708004,0.00017927,2]
[425081941,1781471438000,-457.708004,0.00017927,2]
[425081943,1781471438000,-422.4698973,0.00017927,2]
[425081945,1781471438000,-326.7384617,0.00017927,2]
[425081922,1781471438000,-636.46,0.00017682,2]
[425081930,1781471438000,-2512.72301098,0.00017827,2]
[425081999,1781471438000,-2536.51378436,0.00018977,2]
[425081932,1781471438000,-152.0,0.00017894,7]
[425081947,1781471438000,-457.708004,0.00017927,2]
[425081949,1781471438000,-326.7384617,0.00017927,2]
[425081952,1781471438000,-326.7384617,0.00017927,2]
[425081964,1781471438000,-326.7384617,0.00017931,2]
[425081954,1781471438000,-326.7384617,0.00017927,2]
[425081935,1781471438000,-457.708004,0.00017926,2]
[425082131,1781471440000,-2174.04117641,0.00018977,2]
[425082130,1781471440000,-8221.01872154,0.00018977,2]
[425082128,1781471440000,-1019.05201729,0.00018977,2]
[425082129,1781471440000,-1485.55645327,0.00018977,2]
[425082155,1781471444000,-813.5,0.00018977,2]
[425082156,1781471444000,-468.942,0.00018977,2]
[425082171,1781471446000,-46355.38751532,0.00018977,2]
[425082172,1781471446000,-409215.51388602,0.00018977,2]
[425082169,1781471446000,-276.5150003,0.00018977,2]
[425082170,1781471446000,-63614.1874677,0.00018977,2]
[425082227,1781472632000,-433.4581101,0.00017428,2]
[425082225,1781472632000,-555.638071,0.00017134,2]
[425082234,1781472632000,-1000.0,0.00017669,2]
[425082238,1781472632000,-320.0,0.00017669,2]
[425082232,1781472632000,-1000.0,0.00017669,2]
[425082223,1781472632000,-1417.8004399,0.00016948,2]
[425082236,1781472632000,-750.0,0.00017669,2]
[425082239,1781472632000,-186.0,0.00017707,2]
[425082230,1781472632000,-500.0,0.0001758,2]
[425082243,1781472632000,-1174.72076902,0.00017931,2]
[425082245,1781472632000,-152.22730763,0.00017931,2]
[425082247,1781472632000,-299.4187127,0.00017931,2]
[425082253,1781472632000,-1884.54225819,0.00018677,2]
[425082255,1781472632000,-324.9629529,0.00018776,2]
[425082251,1781472632000,-152.0,0.00017956,7]
[425082249,1781472632000,-196.97574095,0.00017931,2]
[425082257,1781472632000,-287.95071593,0.00018776,2]
[425082259,1781472632000,-39512.98213694,0.00018777,2]
[425082241,1781472632000,-752.57386604,0.00017931,2]
[425082364,1781472638000,-238239.42450943,0.00018777,2]
[425082362,1781472638000,-127324.85721848,0.00018777,2]
[425082363,1781472638000,-41189.48418494,0.00018777,2]
[425082474,1781472643000,-1025.91267145,0.00018589,2]
[425082478,1781472643000,-11703.76414306,0.00018777,2]
[425082476,1781472643000,-25159.78825604,0.00018777,2]
[425082480,1781472643000,-15552.93298165,0.00018777,2]
[425082814,1781472646000,-3704.34056839,0.00018777,2]
[425082897,1781472729000,-240.563,0.00017879,2]
[425083072,1781473838000,-509.788,0.00018377,2]
[425083059,1781473838000,-410.614649,0.0001725,2]
[425083057,1781473838000,-500.0,0.0001704,2]
[425083062,1781473838000,-1208.615,0.00017879,2]
[425083052,1781473838000,-773.1847745,9.9e-05,2]
[425083055,1781473838000,-252.59417666,0.00012346,2]
[425083066,1781473838000,-502112.70276993,0.00018377,2]
[425083060,1781473838000,-318.495,0.00017386,2]
[425083053,1781473838000,-362.8445901,0.0001,2]
[425083064,1781473838000,-152.0,0.0001802,7]
[425083361,1781473841000,-32723.5837121,0.00018377,2]
[425083463,1781473843000,-4334.12932627,0.00018377,2]
[425083461,1781473843000,-1002.5345275,0.00018377,2]
[425083467,1781473843000,-973.27240735,0.00018377,2]
[425083465,1781473843000,-3041.56825577,0.00018377,2]
[425083491,1781473847000,-815.46268356,0.00018377,2]
[425083490,1781473847000,-43339.25422593,0.00018377,2]
[425083547,1781475032000,-435.29706465,0.0001,2]
[425083548,1781475032000,-171.22660028,0.00011,2]
[425083572,1781475033000,-500.0,0.0001347,2]
[425083577,1781475033000,-500.0,0.0001347,2]
[425083578,1781475033000,-500.0,0.0001347,2]
[425083576,1781475033000,-500.0,0.0001347,2]
[425083581,1781475033000,-500.0,0.0001347,2]
[425083583,1781475033000,-500.0,0.0001347,2]
[425083582,1781475033000,-500.0,0.0001347,2]
[425083584,1781475033000,-500.0,0.0001347,2]
[425083586,1781475033000,-500.0,0.0001347,2]
[425083587,1781475033000,-500.0,0.0001347,2]
[425083580,1781475033000,-500.0,0.0001347,2]
[425083579,1781475033000,-500.0,0.0001347,2]
[425083574,1781475033000,-593.79865029,0.0001347,2]
[425083573,1781475033000,-500.0,0.0001347,2]
[425083570,1781475033000,-500.0,0.0001347,2]
[425083561,1781475033000,-500.0,0.0001347,2]
[425083559,1781475033000,-363.24938555,0.0001347,2]
[425083567,1781475033000,-317.80056939,0.0001347,2]
[425083569,1781475033000,-182.19943061,0.0001347,2]
[425083557,1781475033000,-263.0,0.00013469,2]
[425083565,1781475033000,-500.0,0.0001347,2]
[425083555,1781475033000,-2355.95004506,0.00013,2]
[425083563,1781475033000,-500.0,0.0001347,2]
[425083550,1781475033000,-4074.6241429,0.00013,2]
[425083594,1781475033000,-500.0,0.0001347,2]
[425083575,1781475033000,-500.0,0.0001347,2]
[425083588,1781475033000,-500.0,0.0001347,2]
[425083615,1781475033000,-480.988372,0.00013744,2]
[425083595,1781475033000,-500.0,0.0001347,2]
[425083585,1781475033000,-157.75159254,0.0001347,2]
[425083613,1781475033000,-257.650428,0.00013699,2]
[425083614,1781475033000,-888.4415515,0.00013725,2]
[425083609,1781475033000,-23903.7575003,0.00013471,2]
[425083616,1781475033000,-257.650428,0.00014658,2]
[425083617,1781475033000,-1507.72521915,0.00014776,2]
[425083611,1781475033000,-1791.39275135,0.00013591,2]
[425083612,1781475033000,-165.267407,0.00013691,2]
[425083610,1781475033000,-173.82363418,0.00013591,2]
[425083606,1781475033000,-500.0,0.0001347,2]
[425083600,1781475033000,-500.0,0.0001347,2]
[425083603,1781475033000,-500.0,0.0001347,2]
[425083608,1781475033000,-500.0,0.0001347,2]
[425083602,1781475033000,-500.0,0.0001347,2]
[425083604,1781475033000,-500.0,0.0001347,2]
[425083591,1781475033000,-500.0,0.0001347,2]
[425083592,1781475033000,-500.0,0.0001347,2]
[425083597,1781475033000,-500.0,0.0001347,2]
[425083589,1781475033000,-500.0,0.0001347,2]
[425083590,1781475033000,-500.0,0.0001347,2]
[425083596,1781475033000,-500.0,0.0001347,2]
[425083593,1781475033000,-500.0,0.0001347,2]
[425083607,1781475033000,-266.15722161,0.0001347,2]
[425083605,1781475033000,-500.0,0.0001347,2]
[425083599,1781475033000,-500.0,0.0001347,2]
[425083598,1781475033000,-500.0,0.0001347,2]
[425083601,1781475033000,-500.0,0.0001347,2]
[425083669,1781475038000,-2931.163153,0.00015346,2]
[425083646,1781475038000,-354.75807772,0.00014776,2]
[425083675,1781475038000,-9704.93262028,0.00015631,2]
[425083677,1781475038000,-5000.0,0.00015631,2]
[425083666,1781475038000,-102.73308862,0.00014776,2]
[425083680,1781475038000,-5000.0,0.00015631,2]
[425083682,1781475038000,-5000.0,0.00015631,2]
[425083679,1781475038000,-5000.0,0.00015631,2]
[425083668,1781475038000,-454.75220798,0.00015,2]
[425083671,1781475038000,-469.51588289,0.00015531,2]
[425083673,1781475038000,-459.16773608,0.0001563,2]
[425083684,1781475038000,-1000.0,0.00015818,2]
[425083689,1781475038000,-1965.21638549,0.00015962,2]
[425083695,1781475038000,-2931.163153,0.00016638,2]
[425083692,1781475038000,-2931.163153,0.00015992,2]
[425083686,1781475038000,-7118.3903371,0.00015895,2]
[425083694,1781475038000,-469.51588288,0.00016193,2]
[425083701,1781475038000,-500.0,0.00017128,2]
[425083697,1781475038000,-500.0,0.00016854,2]
[425083699,1781475038000,-469.51588288,0.00016854,2]
[425083781,1781475039000,-955.0,0.00018128,2]
[425083777,1781475039000,-955.0,0.00018128,2]
[425083775,1781475039000,-955.0,0.00018128,2]
[425083764,1781475039000,-457.022,0.00017879,2]
[425083779,1781475039000,-955.0,0.00018128,2]
[425083766,1781475039000,-240.563,0.00017879,2]
[425083773,1781475039000,-955.0,0.00018128,2]
[425083772,1781475039000,-152.0,0.00018012,7]
[425083782,1781475039000,-955.0,0.00018128,2]
[425083768,1781475039000,-2931.163153,0.00017929,2]
[425083770,1781475039000,-500.0,0.0001795,2]
[425083783,1781475039000,-955.0,0.00018128,2]
[425083784,1781475039000,-955.0,0.00018128,2]
[425083785,1781475039000,-955.0,0.00018128,2]
[425083790,1781475039000,-955.0,0.00018128,2]
[425083788,1781475039000,-955.0,0.00018128,2]
[425083795,1781475039000,-955.0,0.00018128,2]
[425083762,1781475039000,-151.5,0.00017854,2]
[425083793,1781475039000,-955.0,0.00018128,2]
[425083787,1781475039000,-955.0,0.00018128,2]
[425083792,1781475039000,-955.0,0.00018128,2]
[425083799,1781475039000,-955.0,0.00018128,2]
[425083789,1781475039000,-955.0,0.00018128,2]
[425083801,1781475039000,-955.0,0.00018128,2]
[425083806,1781475039000,-955.0,0.00018128,2]
[425083804,1781475039000,-955.0,0.00018128,2]
[425083797,1781475039000,-955.0,0.00018128,2]
[425083754,1781475039000,-500.0,0.00017854,2]
[425083714,1781475039000,-500.0,0.00017676,2]
[425083760,1781475039000,-277.71993064,0.00017854,2]
[425083704,1781475039000,-2931.163153,0.00017283,2]
[425083702,1781475039000,-1965.21638549,0.00017147,2]
[425083706,1781475039000,-268.586266,0.00017299,2]
[425083708,1781475039000,-500.0,0.00017402,2]
[425083710,1781475039000,-469.51588288,0.00017516,2]
[425083723,1781475039000,-271.8344779,0.00017838,2]
[425083808,1781475039000,-955.0,0.00018128,2]
[425083712,1781475039000,-270.55060762,0.00017583,2]
[425083716,1781475039000,-225.11513251,0.00017838,2]
[425083720,1781475039000,-506.0025391,0.00017838,2]
[425083725,1781475039000,-391.05020653,0.00017838,2]
[425083729,1781475039000,-310.0,0.00017844,2]
[425083733,1781475039000,-151.5,0.00017854,2]
[425083756,1781475039000,-500.0,0.00017854,2]
[425083731,1781475039000,-151.5,0.00017854,2]
[425083727,1781475039000,-750.0,0.00017844,2]
[425083722,1781475039000,-173.97406586,0.00017838,2]
[425083737,1781475039000,-500.0,0.00017854,2]
[425083735,1781475039000,-205.89016271,0.00017854,2]
[425083740,1781475039000,-294.32858348,0.00017854,2]
[425083738,1781475039000,-500.0,0.00017854,2]
[425083744,1781475039000,-500.0,0.00017854,2]
[425083748,1781475039000,-500.0,0.00017854,2]
[425083742,1781475039000,-500.0,0.00017854,2]
[425083746,1781475039000,-500.0,0.00017854,2]
[425083750,1781475039000,-500.0,0.00017854,2]
[425083752,1781475039000,-500.0,0.00017854,2]
[425083758,1781475039000,-349.70006729,0.00017854,2]
[425083718,1781475039000,-351.74239455,0.00017838,2]
[425083814,1781475039000,-469.51588288,0.00018177,2]
[425083802,1781475039000,-955.0,0.00018128,2]
[425083810,1781475039000,-967.12205923,0.00018128,2]
[425083889,1781475039000,-1326.92,0.00018276,2]
[425083880,1781475039000,-1326.92,0.00018276,2]
[425083882,1781475039000,-1326.92,0.00018276,2]
[425083886,1781475039000,-1326.92,0.00018276,2]
[425083884,1781475039000,-1326.92,0.00018276,2]
[425083894,1781475039000,-1326.92,0.00018276,2]
[425083896,1781475039000,-1326.92,0.00018276,2]
[425083893,1781475039000,-1326.92,0.00018276,2]
[425083898,1781475039000,-1326.92,0.00018276,2]
[425083902,1781475039000,-1326.92,0.00018276,2]
[425083900,1781475039000,-1326.92,0.00018276,2]
[425083904,1781475039000,-1326.92,0.00018276,2]
[425083908,1781475039000,-948.86,0.00018276,2]
[425083907,1781475039000,-1327.04948988,0.00018276,2]
[425083910,1781475039000,-948.86,0.00018276,2]
[425083912,1781475039000,-948.86,0.00018276,2]
[425083914,1781475039000,-948.86,0.00018276,2]
[425083916,1781475039000,-948.86,0.00018276,2]
[425083918,1781475039000,-948.86,0.00018276,2]
[425083922,1781475039000,-948.86,0.00018276,2]
[425083924,1781475039000,-948.86,0.00018276,2]
[425083927,1781475039000,-948.86,0.00018276,2]
[425083926,1781475039000,-948.86,0.00018276,2]
[425083929,1781475039000,-948.86,0.00018276,2]
[425083933,1781475039000,-948.86,0.00018276,2]
[425083931,1781475039000,-948.86,0.00018276,2]
[425083820,1781475039000,-400.54,0.00018267,3]
[425083890,1781475039000,-1326.92,0.00018276,2]
[425083872,1781475039000,-1326.92,0.00018276,2]
[425083920,1781475039000,-948.86,0.00018276,2]
[425083874,1781475039000,-1326.92,0.00018276,2]
[425083816,1781475039000,-500.0,0.00018224,2]
[425083868,1781475039000,-1326.92,0.00018276,2]
[425083822,1781475039000,-200.27,0.00018267,3]
[425083818,1781475039000,-801.08,0.00018267,3]
[425083812,1781475039000,-171.28107649,0.00018177,2]
[425083824,1781475039000,-600.83,0.00018267,3]
[425083825,1781475039000,-500.0,0.00018275,2]
[425083827,1781475039000,-1326.92,0.00018275,2]
[425083841,1781475039000,-500.0,0.00018276,2]
[425083845,1781475039000,-500.0,0.00018276,2]
[425083849,1781475039000,-112.04902899,0.00018276,2]
[425083829,1781475039000,-500.0,0.00018275,2]
[425083847,1781475039000,-500.0,0.00018276,2]
[425083851,1781475039000,-387.95097101,0.00018276,2]